[Event "Titled Tuesday Blitz July 18 Early 2023"]
[White "Ortega Amarelle, Mariano"]
[Black "Eugene, Floryan"]
[WhiteFideId "3504301"]
[BlackFideId "20694784"]
[WhiteElo "2536"]
[BlackElo "2695"]
[Result "0-1"]
[Round "4"]
[TimeControl "180+2"]
[Date "2023.07.18"]
[WhiteClock "0:00:11"]
[BlackClock "0:00:07"]
[Board "69"]

1. e4 {[%clk 0:02:54]}  c5 {[%clk 0:02:59]} 2. Nf3 {[%clk 0:02:49]}  Nc6 {[%clk 0:02:59]} 3. d4 {[%clk 0:02:45]}  cxd4 {[%clk 0:02:59]} 4. Nxd4 {[%clk 0:02:45]}  Nf6 {[%clk 0:02:59]} 5. Nc3 {[%clk 0:02:46]}  e5 {[%clk 0:02:58]} 6. Ndb5 {[%clk 0:02:46]}  d6 {[%clk 0:02:56]} 7. Bg5 {[%clk 0:02:45]}  a6 {[%clk 0:02:55]} 8. Na3 {[%clk 0:02:44]}  Be6 {[%clk 0:02:55]} 9. Nc4 {[%clk 0:02:37]}  Rc8 {[%clk 0:02:55]} 10. Bxf6 {[%clk 0:02:35]}  gxf6 {[%clk 0:02:54]} 11. Ne3 {[%clk 0:02:32]}  Bh6 {[%clk 0:02:53]} 12. Ned5 {[%clk 0:02:24]}  Nd4 {[%clk 0:02:27]} 13. Bd3 {[%clk 0:02:17]}  Rg8 {[%clk 0:02:23]} 14. Qh5 {[%clk 0:01:56]}  Rg6 {[%clk 0:02:16]} 15. h3 {[%clk 0:01:42]}  Kf8 {[%clk 0:02:06]} 16. O-O {[%clk 0:01:36]}  Kg7 {[%clk 0:02:05]} 17. f4 {[%clk 0:01:29]}  b5 {[%clk 0:01:25]} 18. a3 {[%clk 0:01:06]}  Rc5 {[%clk 0:01:19]} 19. f5 {[%clk 0:01:00]}  Rg5 {[%clk 0:01:18]} 20. Qd1 {[%clk 0:00:55]}  Bxd5 {[%clk 0:01:17]} 21. Nxd5 {[%clk 0:00:56]}  Qa8 {[%clk 0:01:07]} 22. Ne3 {[%clk 0:00:38]}  Rg3 {[%clk 0:00:42]} 23. Ng4 {[%clk 0:00:35]}  Bf4 {[%clk 0:00:42]} 24. c3 {[%clk 0:00:34]}  Nc6 {[%clk 0:00:31]} 25. Rf3 {[%clk 0:00:32]}  Rxf3 {[%clk 0:00:24]} 26. Qxf3 {[%clk 0:00:31]}  h5 {[%clk 0:00:20]} 27. Nf2 {[%clk 0:00:30]}  Qh8 {[%clk 0:00:18]} 28. Bc2 {[%clk 0:00:29]}  Ne7 {[%clk 0:00:17]} 29. Bb3 {[%clk 0:00:29]}  d5 {[%clk 0:00:16]} 30. Bxd5 {[%clk 0:00:28]}  Nxd5 {[%clk 0:00:12]} 31. exd5 {[%clk 0:00:29]}  Qh6 {[%clk 0:00:12]} 32. Ne4 {[%clk 0:00:27]}  Rxd5 {[%clk 0:00:11]} 33. Rd1 {[%clk 0:00:26]}  Rxd1+ {[%clk 0:00:11]} 34. Qxd1 {[%clk 0:00:27]}  Be3+ {[%clk 0:00:12]} 35. Kf1 {[%clk 0:00:23]}  Qf4+ {[%clk 0:00:12]} 36. Qf3 {[%clk 0:00:23]}  Qxf3+ {[%clk 0:00:12]} 37. gxf3 {[%clk 0:00:23]}  Bc1 {[%clk 0:00:13]} 38. b4 {[%clk 0:00:23]}  Bxa3 {[%clk 0:00:13]} 39. Ke2 {[%clk 0:00:23]}  Kf8 {[%clk 0:00:05]} 40. Nc5 {[%clk 0:00:21]}  a5 {[%clk 0:00:05]} 41. Nb7 {[%clk 0:00:18]}  axb4 {[%clk 0:00:05]} 42. cxb4 {[%clk 0:00:16]}  Bxb4 {[%clk 0:00:06]} 43. Nd8 {[%clk 0:00:17]}  Bc5 {[%clk 0:00:05]} 44. Nc6 {[%clk 0:00:16]}  b4 {[%clk 0:00:05]} 45. Na5 {[%clk 0:00:16]}  Bd4 {[%clk 0:00:05]} 46. Kd3 {[%clk 0:00:16]}  Bc3 {[%clk 0:00:06]} 47. Kc4 {[%clk 0:00:16]}  Kg7 {[%clk 0:00:07]} 48. Nb3 {[%clk 0:00:12]}  Kh6 {[%clk 0:00:07]} 49. Kd3 {[%clk 0:00:13]}  Kg5 {[%clk 0:00:07]} 50. Ke4 {[%clk 0:00:14]}  Kh4 {[%clk 0:00:07]} 51. f4 {[%clk 0:00:14]}  Kxh3 {[%clk 0:00:07]} 52. fxe5 {[%clk 0:00:11]}  Bxe5 {[%clk 0:00:07]} 0-1


[Site "https://www.chess.com"]

[Event "Titled Tuesday Blitz July 18 Early 2023"]
[White "Kantans, Toms"]
[Black "Trifan, Andrei Ioan"]
[WhiteFideId "11602945"]
[BlackFideId "12967068"]
[WhiteElo "2691"]
[BlackElo "2535"]
[Result "0-1"]
[Round "4"]
[TimeControl "180+2"]
[Date "2023.07.18"]
[WhiteClock "0:00:02"]
[BlackClock "0:00:39"]
[Board "70"]

1. e4 {[%clk 0:03:00]}  c6 {[%clk 0:02:57]} 2. d4 {[%clk 0:03:00]}  d5 {[%clk 0:02:57]} 3. e5 {[%clk 0:03:01]}  Bf5 {[%clk 0:02:56]} 4. g4 {[%clk 0:03:02]}  Bg6 {[%clk 0:02:55]} 5. e6 {[%clk 0:03:00]}  Qd6 {[%clk 0:02:49]} 6. exf7+ {[%clk 0:03:00]}  Bxf7 {[%clk 0:02:50]} 7. f4 {[%clk 0:02:53]}  g6 {[%clk 0:02:46]} 8. Nf3 {[%clk 0:02:51]}  Bg7 {[%clk 0:02:45]} 9. Be3 {[%clk 0:02:46]}  Nf6 {[%clk 0:02:44]} 10. h3 {[%clk 0:02:36]}  Ne4 {[%clk 0:02:32]} 11. Nbd2 {[%clk 0:02:33]}  O-O {[%clk 0:02:30]} 12. Bd3 {[%clk 0:02:30]}  c5 {[%clk 0:02:20]} 13. Nxe4 {[%clk 0:01:57]}  dxe4 {[%clk 0:02:19]} 14. Bxe4 {[%clk 0:01:58]}  Nc6 {[%clk 0:02:03]} 15. dxc5 {[%clk 0:01:52]}  Qe6 {[%clk 0:01:59]} 16. Ng5 {[%clk 0:01:52]}  Qc4 {[%clk 0:01:59]} 17. Qd3 {[%clk 0:01:34]}  Qb4+ {[%clk 0:01:56]} 18. c3 {[%clk 0:01:13]}  Qxb2 {[%clk 0:01:56]} 19. Rb1 {[%clk 0:00:56]}  Qxc3+ {[%clk 0:01:34]} 20. Qxc3 {[%clk 0:00:55]}  Bxc3+ {[%clk 0:01:35]} 21. Kf2 {[%clk 0:00:56]}  Bxa2 {[%clk 0:01:25]} 22. Rxb7 {[%clk 0:00:54]}  Rac8 {[%clk 0:01:26]} 23. Rc1 {[%clk 0:00:44]}  Bf6 {[%clk 0:01:24]} 24. Nf3 {[%clk 0:00:43]}  a5 {[%clk 0:01:18]} 25. Rb6 {[%clk 0:00:36]}  Nb4 {[%clk 0:01:18]} 26. c6 {[%clk 0:00:36]}  Bd5 {[%clk 0:01:11]} 27. Bxd5+ {[%clk 0:00:31]}  Nxd5 {[%clk 0:01:12]} 28. Ra6 {[%clk 0:00:32]}  Nb4 {[%clk 0:01:11]} 29. Rxa5 {[%clk 0:00:28]}  Nd3+ {[%clk 0:01:11]} 30. Ke2 {[%clk 0:00:28]}  Nxc1+ {[%clk 0:01:12]} 31. Bxc1 {[%clk 0:00:29]}  Rxc6 {[%clk 0:01:12]} 32. Be3 {[%clk 0:00:28]}  Rb8 {[%clk 0:01:10]} 33. Ra2 {[%clk 0:00:26]}  Re6 {[%clk 0:01:02]} 34. Kf2 {[%clk 0:00:24]}  Rb2+ {[%clk 0:01:01]} 35. Rxb2 {[%clk 0:00:25]}  Bxb2 {[%clk 0:01:02]} 36. Ng5 {[%clk 0:00:25]}  Rc6 {[%clk 0:01:01]} 37. Kf3 {[%clk 0:00:25]}  Bf6 {[%clk 0:00:57]} 38. Ne4 {[%clk 0:00:24]}  Ra6 {[%clk 0:00:57]} 39. Nc5 {[%clk 0:00:20]}  Ra3 {[%clk 0:00:56]} 40. Ke4 {[%clk 0:00:21]}  Kf7 {[%clk 0:00:56]} 41. Nd3 {[%clk 0:00:18]}  Ra4+ {[%clk 0:00:55]} 42. Kf3 {[%clk 0:00:18]}  Ra1 {[%clk 0:00:53]} 43. Ke4 {[%clk 0:00:17]}  Ke6 {[%clk 0:00:51]} 44. Nc5+ {[%clk 0:00:17]}  Kd6 {[%clk 0:00:49]} 45. Nd3 {[%clk 0:00:15]}  Ra4+ {[%clk 0:00:47]} 46. Kf3 {[%clk 0:00:15]}  Bd4 {[%clk 0:00:44]} 47. Bxd4 {[%clk 0:00:13]}  Rxd4 {[%clk 0:00:45]} 48. Ke3 {[%clk 0:00:14]}  Ra4 {[%clk 0:00:43]} 49. h4 {[%clk 0:00:13]}  Kd5 {[%clk 0:00:42]} 50. h5 {[%clk 0:00:05]}  gxh5 {[%clk 0:00:43]} 51. gxh5 {[%clk 0:00:06]}  Ra3 {[%clk 0:00:42]} 52. Ke2 {[%clk 0:00:02]}  Ke4 {[%clk 0:00:39]} 0-1


[Site "https://www.chess.com"]

[Event "Titled Tuesday Blitz July 18 Early 2023"]
[White "2KRK1"]
[Black "Jimenez Almeida, Luis David"]
[BlackFideId "22242244"]
[WhiteElo "2686"]
[BlackElo "2534"]
[Result "1-0"]
[Round "4"]
[TimeControl "180+2"]
[Date "2023.07.18"]
[WhiteClock "0:00:12"]
[BlackClock "0:00:02"]
[Board "71"]

1. Nf3 {[%clk 0:03:00]}  Nf6 {[%clk 0:02:55]} 2. b3 {[%clk 0:03:01]}  g6 {[%clk 0:02:51]} 3. Bb2 {[%clk 0:03:01]}  Bg7 {[%clk 0:02:50]} 4. g3 {[%clk 0:03:02]}  O-O {[%clk 0:02:50]} 5. Bg2 {[%clk 0:03:02]}  d5 {[%clk 0:02:50]} 6. c4 {[%clk 0:03:01]}  c6 {[%clk 0:02:47]} 7. O-O {[%clk 0:03:00]}  a5 {[%clk 0:02:47]} 8. d3 {[%clk 0:02:51]}  Nbd7 {[%clk 0:02:43]} 9. Nbd2 {[%clk 0:02:49]}  Re8 {[%clk 0:02:36]} 10. Rc1 {[%clk 0:02:42]}  a4 {[%clk 0:02:25]} 11. b4 {[%clk 0:02:42]}  a3 {[%clk 0:02:25]} 12. Ba1 {[%clk 0:02:43]}  e6 {[%clk 0:02:14]} 13. Qb3 {[%clk 0:02:18]}  Qe7 {[%clk 0:02:02]} 14. c5 {[%clk 0:01:59]}  e5 {[%clk 0:01:58]} 15. e4 {[%clk 0:01:55]}  d4 {[%clk 0:01:36]} 16. Nc4 {[%clk 0:01:54]}  Nh5 {[%clk 0:01:34]} 17. Nd6 {[%clk 0:01:39]}  Rd8 {[%clk 0:01:27]} 18. Ng5 {[%clk 0:00:59]}  Rf8 {[%clk 0:01:25]} 19. f4 {[%clk 0:00:59]}  h6 {[%clk 0:01:09]} 20. Nh3 {[%clk 0:00:41]}  Ndf6 {[%clk 0:00:56]} 21. f5 {[%clk 0:00:38]}  gxf5 {[%clk 0:00:51]} 22. Nxf5 {[%clk 0:00:38]}  Qc7 {[%clk 0:00:36]} 23. Qd1 {[%clk 0:00:30]}  Kh7 {[%clk 0:00:19]} 24. Bf3 {[%clk 0:00:25]}  Bxf5 {[%clk 0:00:13]} 25. exf5 {[%clk 0:00:25]}  Nf4 {[%clk 0:00:06]} 26. gxf4 {[%clk 0:00:20]}  exf4 {[%clk 0:00:07]} 27. Bxd4 {[%clk 0:00:20]}  Rad8 {[%clk 0:00:05]} 28. Bxf6 {[%clk 0:00:17]}  Bxf6 {[%clk 0:00:05]} 29. Be4 {[%clk 0:00:17]}  Rg8+ {[%clk 0:00:04]} 30. Kh1 {[%clk 0:00:17]}  Be5 {[%clk 0:00:04]} 31. f6+ {[%clk 0:00:11]}  Kh8 {[%clk 0:00:04]} 32. Qh5 {[%clk 0:00:12]}  Bxf6 {[%clk 0:00:02]} 33. Qxh6# {[%clk 0:00:12]} 1-0


[Site "https://www.chess.com"]

[Event "Titled Tuesday Blitz July 18 Early 2023"]
[White "Andreev, Konstantin"]
[Black "Rychagov, Andrey"]
[WhiteFideId "24239305"]
[BlackFideId "4119932"]
[WhiteElo "2526"]
[BlackElo "2668"]
[Result "0-1"]
[Round "4"]
[TimeControl "180+2"]
[Date "2023.07.18"]
[WhiteClock "0:01:45"]
[BlackClock "0:01:42"]
[Board "74"]

1. e4 {[%clk 0:03:00]}  c5 {[%clk 0:02:59]} 2. Nf3 {[%clk 0:03:01]}  e6 {[%clk 0:02:59]} 3. d4 {[%clk 0:03:01]}  cxd4 {[%clk 0:03:00]} 4. Nxd4 {[%clk 0:03:02]}  a6 {[%clk 0:03:00]} 5. Bd3 {[%clk 0:03:02]}  Bc5 {[%clk 0:03:00]} 6. Nb3 {[%clk 0:03:03]}  Be7 {[%clk 0:03:00]} 7. Qg4 {[%clk 0:03:03]}  g6 {[%clk 0:03:00]} 8. Nc3 {[%clk 0:03:02]}  d6 {[%clk 0:02:58]} 9. Qe2 {[%clk 0:02:59]}  Nc6 {[%clk 0:02:57]} 10. Be3 {[%clk 0:03:00]}  Ne5 {[%clk 0:02:57]} 11. f4 {[%clk 0:02:59]}  Nxd3+ {[%clk 0:02:57]} 12. cxd3 {[%clk 0:02:58]}  Nf6 {[%clk 0:02:58]} 13. O-O-O {[%clk 0:02:58]}  b5 {[%clk 0:02:54]} 14. Rdf1 {[%clk 0:02:57]}  Bb7 {[%clk 0:02:42]} 15. Kb1 {[%clk 0:02:56]}  b4 {[%clk 0:02:41]} 16. Nd1 {[%clk 0:02:52]}  a5 {[%clk 0:02:41]} 17. g4 {[%clk 0:02:51]}  a4 {[%clk 0:02:37]} 18. Nc1 {[%clk 0:02:50]}  Nd7 {[%clk 0:02:33]} 19. h4 {[%clk 0:02:47]}  d5 {[%clk 0:02:33]} 20. e5 {[%clk 0:02:46]}  d4 {[%clk 0:02:32]} 21. Bxd4 {[%clk 0:02:46]}  Bxh1 {[%clk 0:02:32]} 22. Rxh1 {[%clk 0:02:47]}  Nc5 {[%clk 0:02:31]} 23. Be3 {[%clk 0:02:44]}  Qd5 {[%clk 0:02:30]} 24. Nf2 {[%clk 0:02:42]}  Rd8 {[%clk 0:02:19]} 25. h5 {[%clk 0:02:38]}  g5 {[%clk 0:02:16]} 26. d4 {[%clk 0:02:31]}  Ne4 {[%clk 0:02:15]} 27. Ncd3 {[%clk 0:02:31]}  Nxf2 {[%clk 0:02:12]} 28. Nxf2 {[%clk 0:02:32]}  gxf4 {[%clk 0:01:59]} 29. Bxf4 {[%clk 0:02:31]}  b3 {[%clk 0:01:59]} 30. Rd1 {[%clk 0:02:26]}  Rc8 {[%clk 0:01:57]} 31. Rc1 {[%clk 0:02:16]}  O-O {[%clk 0:01:56]} 32. Rxc8 {[%clk 0:02:01]}  Rxc8 {[%clk 0:01:55]} 33. g5 {[%clk 0:01:52]}  Rc2 {[%clk 0:01:50]} 34. Qd3 {[%clk 0:01:51]}  Rxf2 {[%clk 0:01:47]} 35. g6 {[%clk 0:01:45]}  Rxf4 {[%clk 0:01:42]} 0-1


[Site "https://www.chess.com"]

[Event "Titled Tuesday Blitz July 18 Early 2023"]
[White "Nagare Kaivalya Sandip"]
[Black "Marosi, Levente"]
[WhiteFideId "25957929"]
[BlackFideId "747181"]
[WhiteElo "2667"]
[BlackElo "2524"]
[Result "1-0"]
[Round "4"]
[TimeControl "180+2"]
[Date "2023.07.18"]
[WhiteClock "0:00:56"]
[BlackClock "0:00:16"]
[Board "75"]

1. e4 {[%clk 0:03:00]}  c6 {[%clk 0:02:59]} 2. d4 {[%clk 0:03:01]}  d5 {[%clk 0:03:00]} 3. e5 {[%clk 0:03:01]}  Bf5 {[%clk 0:03:01]} 4. Nd2 {[%clk 0:03:01]}  e6 {[%clk 0:03:01]} 5. Ngf3 {[%clk 0:03:01]}  c5 {[%clk 0:03:01]} 6. c3 {[%clk 0:03:01]}  Nc6 {[%clk 0:03:00]} 7. Be2 {[%clk 0:03:01]}  Qb6 {[%clk 0:02:58]} 8. O-O {[%clk 0:03:01]}  cxd4 {[%clk 0:02:26]} 9. cxd4 {[%clk 0:03:00]}  Rc8 {[%clk 0:02:17]} 10. Nb3 {[%clk 0:02:58]}  Nb4 {[%clk 0:02:04]} 11. Bd2 {[%clk 0:02:55]}  a5 {[%clk 0:02:02]} 12. Bc3 {[%clk 0:02:48]}  a4 {[%clk 0:01:59]} 13. Nc5 {[%clk 0:02:42]}  Bxc5 {[%clk 0:01:45]} 14. dxc5 {[%clk 0:02:40]}  Qxc5 {[%clk 0:01:35]} 15. Qxa4+ {[%clk 0:02:33]}  Nc6 {[%clk 0:01:36]} 16. Rac1 {[%clk 0:02:30]}  Qa7 {[%clk 0:01:28]} 17. Qxa7 {[%clk 0:02:22]}  Nxa7 {[%clk 0:01:29]} 18. Nd4 {[%clk 0:02:22]}  Ne7 {[%clk 0:01:26]} 19. Bb4 {[%clk 0:02:10]}  Bg6 {[%clk 0:00:48]} 20. Rxc8+ {[%clk 0:02:05]}  Nexc8 {[%clk 0:00:49]} 21. Rc1 {[%clk 0:02:01]}  Kd7 {[%clk 0:00:47]} 22. a4 {[%clk 0:01:59]}  Nb6 {[%clk 0:00:21]} 23. b3 {[%clk 0:01:44]}  Rc8 {[%clk 0:00:17]} 24. Rxc8 {[%clk 0:01:41]}  Nbxc8 {[%clk 0:00:18]} 25. Bf8 {[%clk 0:01:33]}  Nc6 {[%clk 0:00:19]} 26. Nxc6 {[%clk 0:01:33]}  Kxc6 {[%clk 0:00:19]} 27. Bb5+ {[%clk 0:01:31]}  Kc7 {[%clk 0:00:17]} 28. Bxg7 {[%clk 0:01:32]}  Bc2 {[%clk 0:00:16]} 29. b4 {[%clk 0:01:29]}  Na7 {[%clk 0:00:17]} 30. Be8 {[%clk 0:01:29]}  Nc6 {[%clk 0:00:16]} 31. Bxf7 {[%clk 0:01:25]}  d4 {[%clk 0:00:16]} 32. b5 {[%clk 0:01:19]}  Nd8 {[%clk 0:00:11]} 33. Be8 {[%clk 0:01:11]}  d3 {[%clk 0:00:12]} 34. Bh6 {[%clk 0:01:12]}  b6 {[%clk 0:00:11]} 35. Kf1 {[%clk 0:01:09]}  Bxa4 {[%clk 0:00:11]} 36. Ke1 {[%clk 0:01:10]}  Nb7 {[%clk 0:00:11]} 37. Kd2 {[%clk 0:01:07]}  Nc5 {[%clk 0:00:12]} 38. Be3 {[%clk 0:01:07]}  Bc2 {[%clk 0:00:12]} 39. Bxc5 {[%clk 0:01:07]}  bxc5 {[%clk 0:00:12]} 40. Bf7 {[%clk 0:01:01]}  Kd7 {[%clk 0:00:12]} 41. b6 {[%clk 0:01:01]}  h6 {[%clk 0:00:11]} 42. b7 {[%clk 0:01:01]}  Kc7 {[%clk 0:00:12]} 43. Bxe6 {[%clk 0:01:01]}  Kxb7 {[%clk 0:00:12]} 44. Bc4 {[%clk 0:01:02]}  Kc7 {[%clk 0:00:13]} 45. Bxd3 {[%clk 0:01:02]}  Bb3 {[%clk 0:00:14]} 46. f4 {[%clk 0:01:02]}  Be6 {[%clk 0:00:13]} 47. f5 {[%clk 0:01:02]}  Bd5 {[%clk 0:00:14]} 48. g4 {[%clk 0:01:02]}  Bf3 {[%clk 0:00:14]} 49. h3 {[%clk 0:01:02]}  Bg2 {[%clk 0:00:14]} 50. h4 {[%clk 0:01:02]}  Bf3 {[%clk 0:00:14]} 51. g5 {[%clk 0:01:03]}  hxg5 {[%clk 0:00:14]} 52. hxg5 {[%clk 0:01:04]}  Kd7 {[%clk 0:00:15]} 53. Ke3 {[%clk 0:01:04]}  Bd1 {[%clk 0:00:15]} 54. Kf4 {[%clk 0:01:04]}  Bb3 {[%clk 0:00:15]} 55. g6 {[%clk 0:00:57]}  c4 {[%clk 0:00:15]} 56. Be4 {[%clk 0:00:58]}  c3 {[%clk 0:00:16]} 57. Kg5 {[%clk 0:00:57]}  c2 {[%clk 0:00:15]} 58. Bxc2 {[%clk 0:00:57]}  Bxc2 {[%clk 0:00:16]} 59. Kf6 {[%clk 0:00:57]}  Ke8 {[%clk 0:00:16]} 60. g7 {[%clk 0:00:55]}  Bb3 {[%clk 0:00:16]} 61. e6 {[%clk 0:00:55]}  Bxe6 {[%clk 0:00:17]} 62. fxe6 {[%clk 0:00:56]}  Kd8 {[%clk 0:00:16]} 63. g8=Q+ {[%clk 0:00:56]} 1-0


[Site "https://www.chess.com"]

[Event "Titled Tuesday Blitz July 18 Early 2023"]
[White "Arhan_Anand"]
[Black "Bilan, Danila"]
[BlackFideId "24161918"]
[WhiteElo "2664"]
[BlackElo "2523"]
[Result "0-1"]
[Round "4"]
[TimeControl "180+2"]
[Date "2023.07.18"]
[WhiteClock "0:00:10"]
[BlackClock "0:00:12"]
[Board "77"]

1. Nf3 {[%clk 0:03:00]}  d5 {[%clk 0:02:59]} 2. c4 {[%clk 0:03:00]}  c6 {[%clk 0:02:59]} 3. g3 {[%clk 0:02:59]}  Nf6 {[%clk 0:02:58]} 4. Bg2 {[%clk 0:02:59]}  Bf5 {[%clk 0:02:59]} 5. cxd5 {[%clk 0:02:57]}  cxd5 {[%clk 0:02:59]} 6. d3 {[%clk 0:02:57]}  Nc6 {[%clk 0:02:56]} 7. O-O {[%clk 0:02:57]}  e6 {[%clk 0:02:55]} 8. Nbd2 {[%clk 0:02:56]}  h6 {[%clk 0:02:53]} 9. Re1 {[%clk 0:02:55]}  Bc5 {[%clk 0:02:50]} 10. Nb3 {[%clk 0:02:52]}  Bb6 {[%clk 0:02:38]} 11. a4 {[%clk 0:02:43]}  O-O {[%clk 0:02:22]} 12. Bd2 {[%clk 0:02:43]}  Ng4 {[%clk 0:02:18]} 13. d4 {[%clk 0:02:39]}  a5 {[%clk 0:02:07]} 14. Bc3 {[%clk 0:02:38]}  Qd6 {[%clk 0:01:54]} 15. e3 {[%clk 0:02:32]}  Rfc8 {[%clk 0:01:44]} 16. Nfd2 {[%clk 0:02:31]}  Nf6 {[%clk 0:01:35]} 17. Qe2 {[%clk 0:02:30]}  Nb4 {[%clk 0:01:29]} 18. Bxb4 {[%clk 0:02:02]}  Qxb4 {[%clk 0:01:23]} 19. Rec1 {[%clk 0:01:37]}  Rxc1+ {[%clk 0:01:05]} 20. Rxc1 {[%clk 0:01:38]}  Qxa4 {[%clk 0:01:05]} 21. f3 {[%clk 0:01:38]}  Qb4 {[%clk 0:01:02]} 22. Qd1 {[%clk 0:00:51]}  a4 {[%clk 0:00:57]} 23. Nc5 {[%clk 0:00:52]}  Bxc5 {[%clk 0:00:52]} 24. Rxc5 {[%clk 0:00:53]}  Qxb2 {[%clk 0:00:49]} 25. Bf1 {[%clk 0:00:41]}  a3 {[%clk 0:00:46]} 26. Rb5 {[%clk 0:00:41]}  Qc3 {[%clk 0:00:41]} 27. Rb3 {[%clk 0:00:41]}  Qxd2 {[%clk 0:00:30]} 28. Qxd2 {[%clk 0:00:41]}  a2 {[%clk 0:00:30]} 29. g4 {[%clk 0:00:34]}  Bg6 {[%clk 0:00:27]} 30. Rxb7 {[%clk 0:00:20]}  a1=Q {[%clk 0:00:26]} 31. h4 {[%clk 0:00:19]}  Ra2 {[%clk 0:00:15]} 32. Qb4 {[%clk 0:00:19]}  Bd3 {[%clk 0:00:12]} 33. Rb8+ {[%clk 0:00:19]}  Kh7 {[%clk 0:00:12]} 34. Rh8+ {[%clk 0:00:11]}  Kxh8 {[%clk 0:00:12]} 35. Qf8+ {[%clk 0:00:10]}  Kh7 {[%clk 0:00:12]} 0-1


[Site "https://www.chess.com"]

[Event "Titled Tuesday Blitz July 18 Early 2023"]
[White "FoxOnTheRun97"]
[Black "Galiot, Goran"]
[BlackFideId "931560"]
[WhiteElo "2523"]
[BlackElo "2660"]
[Result "1-0"]
[Round "4"]
[TimeControl "180+2"]
[Date "2023.07.18"]
[WhiteClock "0:00:48"]
[BlackClock "0:00:10"]
[Board "78"]

1. d4 {[%clk 0:03:00]}  Nf6 {[%clk 0:02:58]} 2. Bg5 {[%clk 0:03:00]}  Ne4 {[%clk 0:02:58]} 3. h4 {[%clk 0:03:00]}  d5 {[%clk 0:02:58]} 4. Nd2 {[%clk 0:03:01]}  Bf5 {[%clk 0:02:57]} 5. Nxe4 {[%clk 0:02:59]}  Bxe4 {[%clk 0:02:57]} 6. e3 {[%clk 0:02:56]}  h6 {[%clk 0:02:53]} 7. Bf4 {[%clk 0:02:56]}  c6 {[%clk 0:02:48]} 8. f3 {[%clk 0:02:56]}  Bh7 {[%clk 0:02:44]} 9. Bd3 {[%clk 0:02:56]}  Qb6 {[%clk 0:02:26]} 10. Bxh7 {[%clk 0:02:52]}  Rxh7 {[%clk 0:02:26]} 11. Qd3 {[%clk 0:02:49]}  Qxb2 {[%clk 0:02:14]} 12. Rd1 {[%clk 0:02:39]}  Rh8 {[%clk 0:02:13]} 13. Ne2 {[%clk 0:02:37]}  Qxa2 {[%clk 0:01:58]} 14. Kf2 {[%clk 0:02:30]}  Qc4 {[%clk 0:01:57]} 15. Qd2 {[%clk 0:02:11]}  Nd7 {[%clk 0:01:47]} 16. Ra1 {[%clk 0:02:09]}  e5 {[%clk 0:01:35]} 17. dxe5 {[%clk 0:02:05]}  Bc5 {[%clk 0:01:26]} 18. Rhb1 {[%clk 0:01:58]}  b5 {[%clk 0:01:20]} 19. Nd4 {[%clk 0:01:46]}  O-O-O {[%clk 0:00:47]} 20. Nxc6 {[%clk 0:01:25]}  Qxf4 {[%clk 0:00:42]} 21. Ne7+ {[%clk 0:01:18]}  Kb7 {[%clk 0:00:26]} 22. Rxb5+ {[%clk 0:01:18]}  Nb6 {[%clk 0:00:20]} 23. Rxc5 {[%clk 0:01:05]}  Qxe5 {[%clk 0:00:20]} 24. Rxa7+ {[%clk 0:01:04]}  Kxa7 {[%clk 0:00:16]} 25. Nc6+ {[%clk 0:01:04]}  Kb7 {[%clk 0:00:16]} 26. Nxe5 {[%clk 0:01:04]}  Rc8 {[%clk 0:00:15]} 27. Rb5 {[%clk 0:00:57]}  f6 {[%clk 0:00:10]} 28. Nd7 {[%clk 0:00:48]} 1-0


[Site "https://www.chess.com"]